lending/lending_fUSD_20240112
["ID","MTS","AMOUNT","RATE_DAILY","PERIOD"]
[311376588,1705069920730,-2315.41,0.00026418,2]
[311376589,1705069920740,-500.0,0.00026418,2]
[311376590,1705069920750,-500.0,0.00026418,2]
[311376591,1705069920760,-1074.73,0.00026418,2]
[311376592,1705069920770,-1389.91,0.00026418,2]
[311376593,1705069920783,-500.0,0.00026418,2]
[311376594,1705069920792,-845.05,0.00026418,2]
[311376595,1705069920802,-888.54,0.00026418,2]
[311376596,1705069920811,-500.0,0.00026418,2]
[311376597,1705069920821,-1741.88,0.00026418,2]
[311376598,1705069920831,-1065.09,0.00026418,2]
[311376599,1705069920841,-500.0,0.00026418,2]
[311376600,1705069920851,-500.0,0.00026418,2]
[311376601,1705069920860,-547.61,0.00026418,2]
[311376602,1705069920870,-866.87,0.00026418,2]
[311376603,1705069920879,-500.0,0.00026418,2]
[311376604,1705069920888,-583.94,0.00026418,2]
[311376605,1705069920898,-500.0,0.00026418,2]
[311376606,1705069920908,-1887.65,0.00026418,2]
[311376607,1705069920917,-500.0,0.00026418,2]
[311376608,1705069920927,-679.52,0.00026418,2]
[311376609,1705069920936,-978.52,0.00026418,2]
[311376610,1705069920945,-523.52,0.00026418,2]
[311376611,1705069920955,-538.5,0.00026418,2]
[311376612,1705069920964,-552.31,0.00026418,2]
[311376613,1705069920974,-1607.05,0.00026418,2]
[311376614,1705069920984,-625.78,0.00026418,2]
[311376615,1705069920993,-1162.04,0.00026418,2]
[311376616,1705069921002,-3925.57,0.00026418,2]
[311376617,1705069921012,-6529.19,0.00026418,2]
[311376618,1705069921022,-1245.87,0.00026418,2]
[311376619,1705069921033,-500.0,0.00026419,2]
[311376620,1705069921042,-502.5,0.00026419,2]
[311376621,1705069921051,-500.0,0.00026419,2]
[311376622,1705069921061,-702.1,0.00026419,2]
[311376623,1705069921070,-500.0,0.00026419,2]
[311376624,1705069921080,-544.39,0.00026419,2]
[311376625,1705069921089,-672.68,0.00026419,2]
[311376626,1705069921098,-375.23,0.00026419,2]
[311376627,1705069921107,-500.0,0.00026419,2]
[311376628,1705069921116,-729.54,0.00026419,2]
[311376629,1705069921126,-500.0,0.00026419,2]
[311376630,1705069921136,-566.81,0.00026419,2]
[311376631,1705069921145,-500.0,0.00026419,2]
[311376632,1705069921154,-500.0,0.00026419,2]
[311376633,1705069921163,-668.25,0.00026419,2]
[311376634,1705069921172,-500.0,0.00026419,2]
[311376635,1705069921182,-695.69,0.00026419,2]
[311376636,1705069921191,-500.0,0.00026419,2]
[311376637,1705069921200,-500.84,0.00026419,2]
[311376638,1705069921209,-693.65,0.00026419,2]
[311376639,1705069921219,-500.0,0.00026419,2]
[311376640,1705069921229,-738.92,0.00026419,2]
[311376641,1705069921239,-500.0,0.00026419,2]
[311376642,1705069921249,-818.71,0.00026419,2]
[311376643,1705069921258,-1260.63,0.00026419,2]
[311376644,1705069921267,-500.0,0.00026419,2]
[311376645,1705069921280,-997.12,0.00026419,2]
[311376646,1705069921290,-500.0,0.00026419,2]
[311376647,1705069921299,-791.08,0.00026419,2]
[311376648,1705069921308,-500.0,0.00026419,2]
[311376649,1705069921318,-583.49,0.00026419,2]
[311376650,1705069921327,-764.86,0.00026419,2]
[311376651,1705069921336,-500.0,0.00026419,2]
[311376652,1705069921345,-500.0,0.00026419,2]
[311376653,1705069921355,-286.26,0.00026419,2]
[311376654,1705069921365,-500.0,0.00026419,2]
[311376655,1705069921374,-666.51,0.00026419,2]
[311376656,1705069921384,-500.0,0.00026419,2]
[311376657,1705069921394,-538.35,0.00026419,2]
[311376658,1705069921403,-778.72,0.00026419,2]
[311376659,1705069921413,-500.0,0.00026419,2]
[311376660,1705069921422,-500.0,0.00026419,2]
[311376661,1705069921431,-500.0,0.00026419,2]
[311376662,1705069921441,-500.0,0.00026419,2]
[311376663,1705069921451,-523.13,0.00026419,2]
[311376664,1705069921460,-500.0,0.00026419,2]
[311376665,1705069921469,-1386.41,0.00026419,2]
[311376666,1705069921479,-500.0,0.00026419,2]
[311376667,1705069921488,-913.03,0.00026419,2]
[311376668,1705069921499,-632.3,0.00026419,2]
[311376669,1705069921508,-500.0,0.00026419,2]
[311376670,1705069921517,-507.75,0.00026419,2]
[311376671,1705069921529,-713.86,0.00026419,2]
[311376672,1705069921539,-500.0,0.00026419,2]
[311376673,1705069921548,-565.93,0.00026419,2]
[311376674,1705069921558,-528.24,0.00026419,2]
[311376675,1705069921567,-1012.05,0.00026419,2]
[311376676,1705069921577,-2200.73,0.00026419,2]
[311376677,1705069921587,-500.0,0.00026419,2]
[311376678,1705069921598,-500.0,0.00026419,2]
[311376679,1705069921608,-574.28,0.00026419,2]
[311376680,1705069921618,-500.0,0.00026419,2]
[311376681,1705069921627,-610.82,0.00026419,2]
[311376682,1705069921636,-679.81,0.00026419,5]
[311376683,1705069921646,-560.5,0.00026419,2]
[311376684,1705069921655,-1995.08,0.00026419,2]
[311376685,1705069921664,-500.0,0.00026419,2]
[311376686,1705069921674,-1910.97,0.00026419,2]
[311376687,1705069921685,-500.0,0.00026419,2]
[311376688,1705069921695,-500.0,0.00026419,2]
[311376689,1705069921704,-500.0,0.00026419,2]
[311376690,1705069921714,-1099.3,0.00026419,2]
[311376691,1705069921723,-531.38,0.00026419,2]
[311376692,1705069921733,-500.0,0.00026419,2]
[311376693,1705069921743,-832.14,0.00026419,2]
[311376694,1705069921754,-871.05,0.00026419,2]
[311376695,1705069921764,-963.48,0.00026419,2]
[311376696,1705069921777,-500.0,0.00026419,2]
[311376697,1705069921786,-674.09,0.00026419,2]
[311376698,1705069921796,-500.0,0.00026419,2]
[311376699,1705069921806,-500.0,0.00026419,2]
[311376700,1705069921815,-673.94,0.00026419,2]
[311376701,1705069921824,-1270.12,0.00026419,2]
[311376702,1705069921834,-536.49,0.00026419,2]
[311376703,1705069921844,-694.97,0.00026419,2]
[311376704,1705069921854,-500.0,0.00026419,2]
[311376705,1705069921863,-511.44,0.00026419,2]
[311376706,1705069921873,-500.0,0.00026419,2]
[311376707,1705069921883,-500.0,0.00026419,2]
[311376708,1705069921892,-521.98,0.00026419,2]
[311376709,1705069921902,-592.85,0.00026419,2]
[311376710,1705069921911,-500.0,0.00026419,2]
[311376711,1705069921920,-511.22,0.00026419,2]
[311376712,1705069921930,-1245.3,0.00026419,2]
[311376713,1705069921939,-757.48,0.00026419,2]
[311376714,1705069921949,-715.96,0.00026419,2]
[311376715,1705069921959,-500.0,0.0002642,2]
[311376716,1705069921969,-500.0,0.0002642,2]
[311376717,1705069921978,-500.0,0.0002642,2]
[311376718,1705069921987,-500.0,0.0002642,2]
[311376719,1705069921997,-403.71,0.0002642,2]
[311376720,1705069922006,-500.0,0.0002642,2]
[311376721,1705069922016,-500.0,0.0002642,2]
[311376722,1705069922027,-500.0,0.0002642,2]
[311376723,1705069922037,-574.4,0.0002642,2]
[311376724,1705069922046,-569.65,0.0002642,2]
[311376725,1705069922056,-500.0,0.0002642,2]
[311376726,1705069922065,-500.0,0.0002642,2]
[311376727,1705069922075,-500.0,0.0002642,2]
[311376728,1705069922085,-478.54279266,0.0002642,2]
[311376729,1705069922094,-500.0,0.0002642,2]
[311376730,1705069922103,-500.0,0.0002642,2]
[311376731,1705069922113,-2064.59,0.0002642,2]
[311376732,1705069922122,-554.14,0.0002642,2]
[311376733,1705069922132,-555.49,0.0002642,2]
[311376734,1705069922141,-500.0,0.0002642,2]
[311376735,1705069922151,-2984.21,0.0002642,2]
[311376736,1705069922161,-500.0,0.0002642,2]
[311376737,1705069922171,-500.0,0.0002642,2]
[311376738,1705069922180,-500.0,0.0002642,2]
[311376739,1705069922190,-500.0,0.0002642,2]
[311376740,1705069922199,-500.0,0.00026421,2]
[311376741,1705069922208,-402.35,0.00026421,2]
[311376742,1705069922217,-500.0,0.00026421,2]
[311376743,1705069922227,-500.0,0.00026421,2]
[311376744,1705069922235,-502.42,0.00026421,2]
[311376745,1705069922245,-475.52,0.00026421,2]
[311376746,1705069922255,-881.21,0.00026421,2]
[311376747,1705069922265,-535.59,0.00026421,2]
[311376748,1705069922277,-500.0,0.00026421,2]
[311376749,1705069922286,-514.86,0.00026421,2]
[311376750,1705069922295,-228.76,0.00026489,2]
[311376751,1705069922305,-4615.76611416,0.00026495,2]
[311376752,1705069922315,-279.43,0.00026512,2]
[311376753,1705069922324,-629.62,0.0002656,2]
[311376754,1705069922333,-923.31,0.0002656,2]
[311376755,1705069922342,-537.36,0.0002656,2]
[311376756,1705069922352,-760.69,0.0002656,2]
[311376757,1705069922361,-500.0,0.0002656,2]
[311376758,1705069922371,-357.76,0.00026575,2]
[311376759,1705069922380,-12612.3,0.00026575,2]
[311376760,1705069922390,-4540.888268,0.00026645,2]
[311376761,1705069922399,-760.98,0.0002669,2]
[311376762,1705069922408,-1576.67,0.0002669,2]
[311376763,1705069922418,-1676.63,0.0002669,2]
[311376764,1705069922427,-1776.52,0.0002669,2]
[311376765,1705069922436,-1028.33,0.0002669,2]
[311376766,1705069922446,-903.76,0.0002669,2]
[311376767,1705069922455,-823.09,0.0002669,2]
[311376768,1705069922464,-500.0,0.0002669,2]
[311376769,1705069922474,-1992.9,0.0002669,2]
[311376770,1705069922483,-500.0,0.0002669,2]
[311376771,1705069922493,-1088.57,0.0002669,2]
[311376772,1705069922503,-592.52,0.0002669,2]
[311376773,1705069922512,-1069.49,0.0002669,2]
[311376774,1705069922521,-11473.02,0.0002669,2]
[311376775,1705069922535,-1045.86,0.0002669,2]
[311376776,1705069922545,-500.0,0.0002669,2]
[311376777,1705069922555,-693.02,0.0002669,2]
[311376778,1705069922565,-1530.26,0.0002669,2]
[311376779,1705069922575,-500.0,0.0002669,2]
[311376780,1705069922585,-773.0,0.0002669,2]
[311376781,1705069922594,-1161.03,0.0002669,2]
[311376782,1705069922604,-500.0,0.0002669,2]
[311376783,1705069922614,-500.0,0.0002669,2]
[311376784,1705069922623,-3055.75,0.0002669,2]
[311376785,1705069922633,-996.78,0.00026691,2]
[311376786,1705069922642,-939.36,0.00026691,2]
[311376787,1705069922652,-535.32,0.00026691,2]
[311376788,1705069922662,-1978.54,0.00026691,2]
[311376789,1705069922672,-570.64,0.00026691,2]
[311376790,1705069922682,-10562.85,0.00026691,2]
[311376791,1705069922692,-6373.11,0.00026691,2]
[311376792,1705069922703,-749.0,0.00026691,2]
[311376793,1705069922713,-928.84,0.00026691,2]
[311376794,1705069922723,-536.68,0.00026691,2]
[311376795,1705069922734,-2087.57,0.00026691,2]
[311376796,1705069922752,-904.81,0.00026691,2]
[311376797,1705069922766,-889.19,0.00026691,2]
[311376798,1705069922778,-978.77,0.00026691,2]
[311376799,1705069922790,-712.93,0.00026691,2]
[311376800,1705069922801,-553.32,0.00026691,2]
[311376801,1705069922811,-1083.57,0.00026691,2]
[311376802,1705069922821,-5000.64,0.00026691,2]
[311376803,1705069922832,-1837.15,0.00026691,2]
[311376804,1705069922842,-1063.77,0.00026691,2]
[311376805,1705069922853,-4397.81,0.00026691,2]
[311376806,1705069922863,-1384.9,0.00026691,2]
[311376807,1705069922873,-1749.07,0.00026691,2]
[311376808,1705069922883,-8501.24,0.00026691,2]
[311376809,1705069922894,-550.62,0.00026691,2]
[311376810,1705069922905,-500.0,0.00026691,2]
[311376811,1705069922915,-563.63,0.00026691,2]
[311376812,1705069922926,-2396.88,0.00026691,2]
[311376813,1705069922936,-947.32,0.00026691,2]
[311376814,1705069922946,-3427.97,0.00026691,2]
[311376815,1705069922958,-3063.47,0.00026691,2]
[311376816,1705069922968,-2388.38,0.00026691,2]
[311376817,1705069922979,-1809.41,0.00026691,2]
[311376818,1705069922989,-500.0,0.00026692,2]
[311376819,1705069922999,-502.36,0.00026692,2]
[311376820,1705069923010,-516.86,0.00026692,2]
[311376821,1705069923020,-612.81,0.00026692,2]
[311376822,1705069923033,-500.0,0.00026692,2]
[311376823,1705069923043,-513.4,0.00026692,2]
[311376824,1705069923055,-153.35,0.00026692,2]
[311376825,1705069923065,-500.0,0.00026692,2]
[311376826,1705069923075,-500.0,0.00026692,2]
[311376827,1705069923084,-504.92,0.00026692,2]
[311376828,1705069923094,-500.0,0.00026692,2]
[311376829,1705069923105,-500.0,0.00026692,2]
[311376830,1705069923117,-500.0,0.00026692,2]
[311376831,1705069923127,-505.61,0.00026692,2]
[311376832,1705069923137,-500.0,0.00026692,2]
[311376833,1705069923147,-500.0,0.00026692,2]
[311376834,1705069923157,-605.75,0.00026692,2]
[311376835,1705069923167,-500.0,0.00026692,2]
[311376836,1705069923176,-500.0,0.00026692,2]
[311376837,1705069923186,-539.29,0.00026692,2]
[311376838,1705069923402,-585.54,0.00026692,2]
[311376839,1705069923438,-500.0,0.00026692,2]
[311376840,1705069923449,-500.25,0.00026692,2]
[311376841,1705069923458,-667.11,0.00026692,2]
[311376842,1705069923467,-503.41,0.00026692,2]
[311376843,1705069923476,-510.64,0.00026692,2]
[311376844,1705069923485,-502.72,0.00026692,2]
[311376845,1705069923494,-547.84,0.00026692,2]
[311376846,1705069923503,-500.0,0.00026692,2]
[311376847,1705069923513,-500.0,0.00026692,2]
[311376848,1705069923522,-166.73,0.00026692,2]
[311376849,1705069923538,-500.0,0.00026692,2]
[311376850,1705069923547,-500.0,0.00026692,2]
[311376851,1705069923557,-500.0,0.00026692,2]
[311376852,1705069923566,-500.0,0.00026692,2]
[311376853,1705069923576,-759.5,0.00026692,2]
[311376854,1705069923586,-491.39827873,0.00026692,2]
[311376855,1705069923597,-594.48,0.00026692,2]
[311376856,1705069923606,-500.0,0.00026692,2]
[311376857,1705069923618,-526.9,0.00026692,2]
[311376858,1705069923627,-500.0,0.00026692,2]
[311376859,1705069923636,-828.68,0.00026692,2]
[311376860,1705069923647,-500.0,0.00026692,2]
[311376861,1705069923656,-500.0,0.00026692,2]
[311376862,1705069923665,-527.53,0.00026692,2]
[311376863,1705069923677,-1088.6,0.00026692,2]
[311376864,1705069923687,-1291.94,0.00026692,2]
[311376865,1705069923697,-500.0,0.00026692,2]
[311376866,1705069923707,-810.7,0.00026692,2]
[311376867,1705069923717,-4607.32,0.00026692,2]
[311376868,1705069923726,-504.06,0.00026692,2]
[311376869,1705069923735,-500.0,0.00026692,2]
[311376870,1705069923745,-512.6,0.00026692,2]
[311376871,1705069923755,-500.0,0.00026692,2]
[311376872,1705069923765,-2315.41,0.00026692,2]
[311376873,1705069923774,-500.0,0.00026692,2]
[311376874,1705069923788,-638.83,0.00026692,2]
[311376875,1705069923797,-1074.73,0.00026692,2]
[311376876,1705069923807,-1389.91,0.00026692,2]
[311376877,1705069923816,-500.0,0.00026692,2]
[311376878,1705069923826,-845.05,0.00026692,2]
[311376879,1705069923836,-888.54,0.00026692,2]
[311376880,1705069923845,-500.0,0.00026692,2]
[311376881,1705069923855,-1741.88,0.00026692,2]
[311376882,1705069923865,-1065.09,0.00026692,2]
[311376883,1705069923875,-500.0,0.00026692,2]
[311376884,1705069923884,-500.0,0.00026692,2]
[311376885,1705069923895,-547.61,0.00026692,2]
[311376886,1705069923904,-866.87,0.00026692,2]
[311376887,1705069923913,-500.0,0.00026692,2]
[311376888,1705069923922,-500.0,0.00026692,2]
[311376889,1705069923933,-1887.65,0.00026692,2]
[311376890,1705069923944,-500.0,0.00026692,2]
[311376891,1705069923953,-679.52,0.00026692,2]
[311376892,1705069923963,-978.52,0.00026692,2]
[311376893,1705069923973,-523.52,0.00026692,2]
[311376894,1705069923984,-538.5,0.00026692,2]
[311376895,1705069923993,-552.31,0.00026692,2]
[311376896,1705069924002,-1607.05,0.00026692,2]
[311376897,1705069924012,-625.78,0.00026692,2]
[311376898,1705069924022,-1162.04,0.00026692,2]
[311376899,1705069924033,-3925.57,0.00026692,2]
[311376900,1705069924043,-6529.19,0.00026692,2]
[311376901,1705069924053,-1245.87,0.00026692,2]
[311376902,1705069924063,-500.0,0.00026693,2]
[311376903,1705069924073,-500.0,0.00026693,2]
[311376904,1705069924082,-500.0,0.00026693,2]
[311376905,1705069924092,-500.0,0.00026693,2]
[311376906,1705069924102,-381.93,0.00026693,2]
[311376907,1705069924111,-369.8,0.00026693,2]
[311376908,1705069924121,-515.59,0.00026693,2]
[311376909,1705069924130,-500.0,0.00026693,2]
[311376910,1705069924140,-502.5,0.00026693,2]
[311376911,1705069924149,-500.0,0.00026693,2]
[311376912,1705069924158,-702.1,0.00026693,2]
[311376913,1705069924168,-500.0,0.00026693,2]
[311376914,1705069924178,-544.39,0.00026693,2]
[311376915,1705069924187,-672.68,0.00026693,2]
[311376917,1705069924197,-500.0,0.00026693,2]
[311376918,1705069924206,-729.54,0.00026693,2]
[311376919,1705069924215,-500.0,0.00026693,2]
[311376920,1705069924224,-566.81,0.00026693,2]
[311376921,1705069924234,-500.0,0.00026693,2]
[311376922,1705069924245,-500.0,0.00026693,2]
[311376923,1705069924255,-668.25,0.00026693,2]
[311376924,1705069924264,-332.02,0.00026693,2]
[311376925,1705069924273,-695.69,0.00026693,2]
[311376926,1705069924286,-500.0,0.00026693,2]
[311376927,1705069924297,-500.84,0.00026693,2]
[311376928,1705069924308,-569.65,0.00026693,2]
[311376929,1705069924317,-693.65,0.00026693,2]
[311376930,1705069924328,-500.0,0.00026693,2]
[311376931,1705069924338,-738.92,0.00026693,2]
[311376932,1705069924348,-500.0,0.00026693,2]
[311376933,1705069924358,-818.71,0.00026693,2]
[311376934,1705069924368,-1260.63,0.00026693,2]
[311376935,1705069924378,-437.0,0.00026693,2]
[311376936,1705069924387,-500.0,0.00026693,2]
[311376937,1705069924397,-997.12,0.00026693,2]
[311376938,1705069924407,-500.0,0.00026693,2]
[311376939,1705069924417,-791.08,0.00026693,2]
[311376940,1705069924426,-500.0,0.00026693,2]
[311376941,1705069924436,-583.49,0.00026693,2]
[311376942,1705069924445,-764.86,0.00026693,2]
[311376943,1705069924454,-500.0,0.00026693,2]
[311376944,1705069924464,-170.5,0.00026693,2]
[311376945,1705069924474,-500.0,0.00026693,2]
[311376946,1705069924483,-500.0,0.00026693,2]
[311376947,1705069924493,-666.51,0.00026693,2]
[311376948,1705069924503,-500.0,0.00026693,2]
[311376949,1705069924513,-538.35,0.00026693,2]
[311376950,1705069924522,-778.72,0.00026693,2]
[311376951,1705069924535,-500.0,0.00026693,2]
[311376952,1705069924545,-500.0,0.00026693,2]
[311376953,1705069924554,-500.0,0.00026693,2]
[311376954,1705069924564,-500.0,0.00026693,2]
[311376955,1705069924575,-500.0,0.00026693,2]
[311376956,1705069924585,-523.13,0.00026693,2]
[311376957,1705069924595,-500.0,0.00026693,2]
[311376958,1705069924605,-500.0,0.00026693,2]
[311376959,1705069924615,-1386.41,0.00026693,2]
[311376960,1705069924625,-500.0,0.00026693,2]
[311376961,1705069924635,-913.03,0.00026693,2]
[311376962,1705069924645,-632.3,0.00026693,2]
[311376963,1705069924655,-500.0,0.00026693,2]
[311376964,1705069924664,-507.75,0.00026693,2]
[311376965,1705069924674,-713.86,0.00026693,2]
[311376966,1705069924684,-500.0,0.00026693,2]
[311376967,1705069924694,-500.0,0.00026693,2]
[311376968,1705069924704,-565.93,0.00026693,2]
[311376969,1705069924714,-528.24,0.00026693,2]
[311376970,1705069924724,-2064.59,0.00026693,2]
[311376971,1705069924735,-1012.05,0.00026693,2]
[311376972,1705069924745,-2200.73,0.00026693,2]
[311376973,1705069924755,-500.0,0.00026693,2]
[311376974,1705069924765,-500.0,0.00026693,2]
[311376975,1705069924776,-554.14,0.00026693,2]
[311376976,1705069924792,-574.28,0.00026693,2]
[311376977,1705069924802,-500.0,0.00026693,2]
[311376978,1705069924811,-610.82,0.00026693,2]
[311376979,1705069924824,-679.81,0.00026693,5]
[311376980,1705069924834,-555.49,0.00026693,2]
[311376981,1705069924844,-500.0,0.00026693,2]
[311376982,1705069924854,-560.5,0.00026693,2]
[311376983,1705069924864,-1995.08,0.00026693,2]
[311376984,1705069924874,-299.26,0.00026693,2]
[311376985,1705069924884,-2984.21,0.00026693,2]
[311376986,1705069924894,-1910.97,0.00026693,2]
[311376987,1705069924904,-500.0,0.00026693,2]
[311376988,1705069924914,-500.0,0.00026693,2]
[311376989,1705069924924,-500.0,0.00026693,2]
[311376990,1705069924933,-500.0,0.00026693,2]
[311376991,1705069924943,-500.0,0.00026693,2]
[311376992,1705069924953,-1099.3,0.00026693,2]
[311376993,1705069924963,-531.38,0.00026693,2]
[311376994,1705069924972,-500.0,0.00026693,2]
[311376995,1705069924982,-832.14,0.00026693,2]
[311376996,1705069924991,-871.05,0.00026693,2]
[311376997,1705069925001,-500.0,0.00026693,2]
[311376998,1705069925010,-963.48,0.00026693,2]
[311376999,1705069925020,-500.0,0.00026693,2]
[311377000,1705069925033,-674.09,0.00026693,2]
[311377001,1705069925043,-500.0,0.00026693,2]
[311377002,1705069925054,-500.0,0.00026693,2]
[311377003,1705069925064,-673.94,0.00026693,2]
[311377004,1705069925075,-1270.12,0.00026693,2]
[311377005,1705069925086,-536.49,0.00026693,2]
[311377006,1705069925096,-694.97,0.00026693,2]
[311377007,1705069925107,-500.0,0.00026693,2]
[311377008,1705069925117,-500.0,0.00026693,2]
[311377009,1705069925127,-511.44,0.00026693,2]
[311377010,1705069925137,-500.0,0.00026693,2]
[311377011,1705069925147,-500.0,0.00026693,2]
[311377012,1705069925157,-521.98,0.00026693,2]
[311377013,1705069925167,-592.85,0.00026693,2]
[311377014,1705069925177,-500.0,0.00026693,2]
[311377015,1705069925187,-511.22,0.00026693,2]
[311377016,1705069925197,-1245.3,0.00026693,2]
[311377017,1705069925208,-757.48,0.00026693,2]
[311377018,1705069925219,-715.96,0.00026693,2]
[311377019,1705069925229,-197.91,0.00026695,2]
[311377020,1705069925239,-500.0,0.00026695,2]
[311377021,1705069925249,-500.0,0.00026695,2]
[311377022,1705069925258,-502.42,0.00026695,2]
[311377023,1705069925268,-881.21,0.00026695,2]
[311377024,1705069925278,-535.59,0.00026695,2]
[311377025,1705069925293,-311.84,0.00026695,2]
[311377026,1705069925303,-514.86,0.00026695,2]
[311377027,1705069925312,-155.00310685,0.000268,2]
[311377028,1705069925322,-629.62,0.00026834,2]
[311377029,1705069925333,-923.31,0.00026834,2]
[311377030,1705069925343,-537.36,0.00026834,2]
[311377031,1705069925353,-760.69,0.00026834,2]
[311377032,1705069925363,-500.0,0.00026834,2]
[311377033,1705069925373,-4615.76611416,0.00026869,2]
[311377034,1705069925383,-760.98,0.00026964,2]
[311377035,1705069925392,-1576.67,0.00026964,2]
[311377036,1705069925402,-1676.63,0.00026964,2]
[311377037,1705069925411,-1776.52,0.00026964,2]
[311377038,1705069925421,-1028.33,0.00026964,2]
[311377039,1705069925431,-903.76,0.00026964,2]
[311377040,1705069925441,-823.09,0.00026964,2]
[311377041,1705069925450,-599.06,0.00026964,2]
[311377042,1705069925460,-1992.9,0.00026964,2]
[311377043,1705069925471,-500.0,0.00026964,2]
[311377044,1705069925481,-1088.57,0.00026964,2]
[311377045,1705069925491,-592.52,0.00026964,2]
[311377046,1705069925501,-1069.49,0.00026964,2]
[311377047,1705069925511,-11473.02,0.00026964,2]
[311377048,1705069925526,-1045.86,0.00026964,2]
[311377049,1705069925541,-500.0,0.00026964,2]
[311377050,1705069925551,-693.02,0.00026964,2]
[311377051,1705069925562,-1530.26,0.00026964,2]
[311377052,1705069925574,-500.0,0.00026964,2]
[311377053,1705069925584,-773.0,0.00026964,2]
[311377054,1705069925596,-1161.03,0.00026964,2]
[311377055,1705069925613,-500.0,0.00026964,2]
[311377056,1705069925624,-500.0,0.00026964,2]
[311377057,1705069925635,-3055.75,0.00026964,2]
[311377058,1705069925647,-996.78,0.00026965,2]
[311377059,1705069925658,-939.36,0.00026965,2]
[311377060,1705069925668,-535.32,0.00026965,2]
[311377061,1705069925679,-1978.54,0.00026965,2]
[311377062,1705069925690,-570.64,0.00026965,2]
[311377063,1705069925700,-10562.85,0.00026965,2]
[311377064,1705069925711,-6373.11,0.00026965,2]
[311377065,1705069925722,-749.0,0.00026965,2]
[311377066,1705069925742,-928.84,0.00026965,2]
[311377067,1705069925754,-536.68,0.00026965,2]
[311377068,1705069925764,-2087.57,0.00026965,2]
[311377069,1705069925775,-904.81,0.00026965,2]
[311377070,1705069925792,-889.19,0.00026965,2]
[311377071,1705069925802,-978.77,0.00026965,2]
[311377072,1705069925813,-712.93,0.00026965,2]
[311377073,1705069925824,-553.32,0.00026965,2]
[311377074,1705069925835,-5000.64,0.00026965,2]
[311377075,1705069925846,-1083.57,0.00026965,2]
[311377076,1705069925858,-1837.15,0.00026965,2]
[311377077,1705069925869,-1063.77,0.00026965,2]
[311377078,1705069925880,-4397.81,0.00026965,2]
[311377079,1705069925892,-1384.9,0.00026965,2]
[311377080,1705069925902,-1749.07,0.00026965,2]
[311377081,1705069925913,-8501.24,0.00026965,2]
[311377082,1705069925923,-550.62,0.00026965,2]
[311377083,1705069925934,-500.0,0.00026965,2]
[311377084,1705069925944,-563.63,0.00026965,2]
[311377085,1705069925954,-2396.88,0.00026965,2]
[311377086,1705069925965,-947.32,0.00026965,2]
[311377087,1705069926074,-3427.97,0.00026965,2]
[311377088,1705069926084,-3063.47,0.00026965,2]